bitfinex/quotes_ETHUSD_20241022
["timestamp","ask_amount","ask_price","bid_price","bid_amount"]
[1729618543533,3.81158,2623.6,2623.2,3.81204]
[1729618544075,0.10231716,2623.5,2623.2,7.6241]
[1729618544272,0.10231716,2623.5,2623.2,4.73469706]
[1729618544448,3.81142,2623.7,2623.2,4.73469706]
[1729618544782,0.10237292,2623.6,2623.4,3.81181]
[1729618544945,0.10237292,2623.6,2623.5,0.8155]
[1729618545155,3.39932744,2623.8,2623.5,0.8155]
[1729618545355,0.10236892,2623.6,2623.5,0.8155]
[1729618545546,3.39932744,2623.8,2623.5,0.8155]
[1729618545774,0.10236892,2623.6,2623.5,0.8155]
[1729618546084,0.10236892,2623.6,2623.2,4.62753]
[1729618546240,7.21072744,2623.8,2623.2,4.62753]
[1729618546241,3.81148,2623.7,2623.3,3.81197]
[1729618546436,0.10236892,2623.6,2623.3,3.81197]
[1729618548288,0.10236892,2623.6,2623.2,5.41357064]
[1729618548470,0.10236892,2623.6,2623.2,1.07116474]
[1729618548471,3.91393892,2623.6,2623.2,1.07116474]
[1729618548639,3.91393892,2623.6,2623.2,0.2851941]
[1729618548838,3.81201,2623.3,2623.1,0.78597064]
[1729618549039,0.10213387,2623.2,2623.0,18.37005064]
[1729618549381,4.34231,2623.3,2623.0,18.37005064]
[1729618549536,0.1020741,2623.1,2623.0,21.37005064]
[1729618549738,4.34231,2623.3,2623.0,18.37005064]
[1729618549975,0.1020741,2623.1,2623.0,21.37005064]
[1729618550278,4.34231,2623.3,2623.0,21.37005064]
[1729618550579,3.81219,2623.2,2623.0,17.58408]
[1729618550743,3.91432387,2623.2,2623.0,17.58408]
[1729618551076,0.10213387,2623.2,2623.0,17.58408]
[1729618551482,4.3423,2623.3,2623.0,17.58408]
[1729618551656,0.10198628,2623.1,2623.0,17.58408]
[1729618551857,0.5303,2623.3,2623.0,17.58408]
[1729618552074,0.10198628,2623.1,2623.0,18.37005064]
[1729618552381,4.3423,2623.3,2623.0,18.37005064]
[1729618552584,0.10198628,2623.1,2623.0,18.37005064]
[1729618553087,4.3423,2623.3,2623.0,18.37005064]
[1729618553262,0.10198628,2623.1,2623.0,18.37005064]
[1729618553592,0.5303,2623.3,2623.0,18.37005064]
[1729618553765,0.10198628,2623.1,2623.0,18.37005064]
[1729618553960,0.5303,2623.3,2623.0,18.37005064]
[1729618554166,0.10198628,2623.1,2623.0,18.37005064]
[1729618554477,0.10198628,2623.1,2623.0,18.76395789]
[1729618554652,0.5303,2623.3,2623.0,18.76395789]
[1729618554851,0.10204605,2623.2,2623.1,0.79076443]
[1729618555183,0.5303,2623.3,2623.1,0.79076443]
[1729618555369,0.10204605,2623.2,2623.1,1.17987789]
[1729618555772,0.5303,2623.3,2623.1,1.17987789]
[1729618555977,0.10204605,2623.2,2623.1,1.17987789]
[1729618556386,0.5303,2623.3,2623.0,18.76395789]
[1729618556695,0.5303,2623.3,2623.2,0.79046416]
[1729618558002,3.81186,2623.4,2623.2,0.79046416]
[1729618558581,3.81186,2623.4,2623.1,0.79046416]
[1729618558782,4.34202,2623.5,2623.2,0.79046416]
[1729618559098,3.39932744,2623.7,2623.3,0.79046416]
[1729618559099,3.81162,2623.6,2623.3,0.79046416]
[1729618559501,3.81162,2623.6,2623.3,1.54476416]
[1729618560171,0.5303,2623.7,2623.3,1.54476416]
[1729618560496,3.91382723,2623.6,2623.4,0.79046416]
[1729618560653,3.91382723,2623.6,2623.3,1.54476416]
[1729618560853,3.91382723,2623.6,2623.4,0.79046416]
[1729618561606,0.10221723,2623.6,2623.4,0.79046416]
[1729618564495,3.91380723,2623.6,2623.4,0.79046416]
[1729618566004,0.10221723,2623.6,2623.4,0.79046416]
[1729618566245,0.10221723,2623.6,2623.5,0.79046416]
[1729618566531,0.10221723,2623.6,2623.5,5.25581836]
[1729618566733,0.10221723,2623.6,2623.5,5.64523209]
[1729618566933,3.81104,2624.0,2623.6,3.81155]
[1729618567135,3.81104,2624.0,2623.6,4.60129201]
[1729618567438,3.81104,2624.0,2623.7,0.78974201]
[1729618567639,3.81071,2624.2,2623.8,1.54174201]
[1729618567936,4.34077,2624.4,2623.8,1.54174201]
[1729618567937,3.81041,2624.4,2624.0,0.78974201]
[1729618568138,3.39932744,2624.2,2624.0,0.78974201]
[1729618568321,3.81126,2623.8,2623.7,0.78974201]
[1729618568670,3.81141,2623.7,2623.6,0.78974201]
[1729618568936,3.81141,2623.7,2623.4,0.78974201]
[1729618568937,3.8117,2623.5,2623.4,0.78974201]
[1729618569139,3.81184,2623.4,2623.2,0.78974201]
[1729618569432,11.02281744,2623.5,2623.2,0.78974201]
[1729618569749,3.39932744,2623.5,2623.2,0.78974201]
[1729618570053,11.02282744,2623.5,2623.2,0.78974201]
[1729618570236,3.81184,2623.4,2623.2,0.78974201]
[1729618570438,3.81184,2623.4,2623.3,0.78974201]
[1729618570794,7.21103744,2623.5,2623.3,0.78974201]
[1729618570995,11.02286744,2623.5,2623.2,0.78974201]
[1729618571312,7.21103744,2623.5,2623.2,0.78974201]
[1729618571718,7.21103744,2623.5,2623.3,0.78974201]
[1729618572341,7.21103744,2623.5,2623.2,1.17987789]
[1729618572342,3.81199,2623.3,2623.2,1.17987789]
[1729618572656,3.39932744,2623.5,2623.1,0.78996166]
[1729618572853,7.62381,2623.4,2623.1,0.78996166]
[1729618573017,3.81206,2623.3,2623.1,0.78996166]
[1729618573419,3.81206,2623.3,2623.0,0.78996166]
[1729618574460,3.81206,2623.3,2622.9,1.93187789]
[1729618574461,3.81206,2623.3,2623.1,0.78996166]
[1729618575018,3.81206,2623.3,2623.0,0.78996166]
[1729618575217,0.09204707,2623.2,2623.0,0.78996166]
[1729618575416,3.81206,2623.3,2623.0,0.78996166]
[1729618575760,0.09204707,2623.2,2623.0,0.78996166]
[1729618576061,3.81228,2623.1,2623.0,0.78996166]
[1729618576240,4.34236,2623.3,2622.9,0.78996166]
[1729618576440,3.81214,2623.2,2623.0,0.78996166]
[1729618576761,0.09218533,2623.1,2623.0,0.78996166]
[1729618577263,4.34231,2623.3,2623.0,0.78996166]
[1729618577464,3.90423976,2623.2,2622.9,0.78996166]
[1729618577619,3.81257,2622.9,2622.8,0.78996166]
[1729618577815,3.9044603,2622.9,2622.7,0.78996166]
[1729618578373,3.9044603,2622.9,2622.6,0.78996166]
[1729618578569,0.0918903,2622.9,2622.6,0.78996166]
[1729618578887,0.0918903,2622.9,2622.7,0.78996166]
[1729618579325,0.0918903,2622.9,2622.8,0.78996166]
[1729618579519,3.8122,2623.2,2622.8,0.78996166]
[1729618579763,3.8122,2623.2,2622.9,1.58246166]
[1729618581082,3.81235,2623.1,2622.9,0.7925]
[1729618581367,3.81243,2623.0,2622.7,1.58766166]
[1729618581923,3.81229,2623.1,2622.7,1.58766166]
[1729618582922,3.81229,2623.1,2622.8,0.78996166]
[1729618583729,3.81244,2623.0,2622.8,0.78996166]
[1729618583929,3.81244,2623.0,2622.7,1.58766166]
[1729618584824,3.81244,2623.0,2622.7,0.78996166]
[1729618585434,3.81244,2623.0,2622.6,0.78996166]
[1729618586830,7.62466,2623.1,2622.6,4.60290166]
[1729618587072,7.62466,2623.1,2622.7,0.78996166]
[1729618587764,3.81243,2623.0,2622.7,0.78996166]
[1729618590193,3.8126,2622.9,2622.7,0.78996166]
[1729618590367,0.09127784,2622.9,2622.6,0.78996166]
[1729618590744,0.09127784,2622.9,2622.7,0.78996166]
[1729618590944,0.09127784,2622.9,2622.6,0.78996166]
[1729618591133,0.5303,2623.3,2622.8,4.60011]
[1729618591134,3.81199,2623.3,2622.8,4.60011]
[1729618591873,3.81199,2623.3,2622.8,5.39007166]
[1729618592229,3.81214,2623.2,2622.8,1.57736166]
[1729618592472,4.34202,2623.5,2622.8,1.57736166]
[1729618592473,3.81236,2623.1,2622.8,1.57736166]
[1729618592696,3.39932744,2622.9,2622.8,0.78996166]
[1729618592989,0.5303,2622.8,2622.3,0.78996166]
[1729618593190,4.34374,2622.3,2622.1,0.78996166]
[1729618593471,4.34374,2622.3,2621.7,1.97734689]
[1729618593472,3.81397,2622.0,2621.8,0.78996166]
[1729618593642,3.81402,2621.9,2621.7,0.78996166]
[1729618593844,7.62815,2621.9,2621.6,0.78996166]
[1729618594266,7.62815,2621.9,2621.5,0.78996166]
[1729618594583,7.62815,2621.9,2621.6,0.78996166]
[1729618594584,3.81402,2621.9,2621.6,0.78996166]
[1729618594884,3.81402,2621.9,2621.4,4.60466166]
[1729618595037,3.81402,2621.9,2621.4,6.09835188]
[1729618595235,3.81382,2622.1,2621.4,0.78996166]
[1729618595236,0.5303,2621.8,2621.4,0.78996166]
[1729618595488,7.21363744,2621.7,2621.2,4.60499166]
[1729618595637,3.81413,2621.9,2621.3,0.0762941]
[1729618595830,3.81425,2621.8,2621.3,3.8149]
[1729618596531,3.81425,2621.8,2621.3,7.62971]
[1729618596734,3.81425,2621.8,2621.4,3.81472]
[1729618597801,7.21337744,2621.9,2621.4,3.81472]
[1729618597998,3.81405,2621.9,2621.4,3.81472]
[1729618601195,3.81405,2621.9,2621.4,7.70569771]
[1729618601397,3.81405,2621.9,2621.5,0.8191]
[1729618601781,3.81405,2621.9,2621.5,4.6337]
[1729618602328,3.81388,2622.0,2621.5,4.6337]
[1729618602680,7.62786,2622.0,2621.5,4.6337]
[1729618603496,3.81403,2621.9,2621.5,0.8191]
[1729618603691,3.8142,2621.8,2621.5,0.8191]
[1729618604079,3.81438,2621.7,2621.3,0.7687]
[1729618604276,3.8149,2621.3,2621.0,0.7687]
[1729618604517,7.21422744,2621.3,2620.6,0.7687]
[1729618604822,3.81521,2621.1,2620.6,4.58454]
[1729618604978,3.81521,2621.1,2620.6,8.40038]
[1729618605323,7.74452744,2621.3,2620.6,8.40038]
[1729618605324,0.08596669,2621.0,2620.7,3.8157]
[1729618605504,0.08596669,2621.0,2620.6,5.424578]
[1729618605505,0.08596669,2621.0,2620.6,5.424548]
[1729618605691,3.81525,2621.1,2620.6,5.424548]
[1729618606024,0.08574063,2621.0,2620.7,3.81568]
[1729618606225,0.08574063,2621.0,2620.6,5.424548]
[1729618606442,3.81529,2621.1,2620.7,3.0]
[1729618606716,0.08574063,2621.0,2620.7,6.8157]
[1729618608620,0.08574063,2621.0,2620.8,3.81561]
[1729618608823,3.81506,2621.2,2620.8,3.81561]
[1729618608975,0.0860001,2620.9,2620.8,3.81561]
[1729618609177,3.81506,2621.2,2620.8,3.81561]
[1729618609574,0.08611985,2621.1,2620.9,3.8154]
[1729618609981,4.34504,2621.5,2620.9,3.8154]
[1729618610178,0.08605998,2621.0,2620.9,3.8154]
[1729618610383,3.81483,2621.4,2620.9,5.00089278]
[1729618610622,4.34504,2621.5,2620.9,5.00089278]
[1729618610623,0.08576235,2621.0,2620.9,5.00089278]
[1729618610994,0.5303,2621.7,2620.9,1.18549278]
[1729618610995,7.21408744,2621.4,2620.9,1.18549278]
[1729618611192,3.90112235,2621.0,2620.6,0.7687]
[1729618611390,3.90112235,2621.0,2620.3,0.5971544]
[1729618611391,7.21501744,2620.8,2620.3,8.1743344]
[1729618611625,7.21501744,2620.8,2620.3,1.3580544]
[1729618611626,3.81577,2620.7,2620.3,1.3580544]
[1729618611826,11.03126744,2620.6,2620.0,1.1421]
[1729618612128,0.61586312,2620.7,2619.9,3.81687]
[1729618612129,3.39932744,2620.4,2619.9,3.81687]
[1729618612337,3.81621,2620.4,2619.9,3.81687]
[1729618612627,0.5303,2620.2,2619.6,3.81733]
[1729618612782,0.5303,2620.2,2619.9,3.8169]
[1729618612982,0.08452078,2620.1,2619.9,3.8169]
[1729618613182,0.08452078,2620.1,2620.0,3.81679]
[1729618613415,3.81613,2620.5,2619.9,3.81693]
[1729618613599,7.21545744,2620.5,2620.0,3.81671]
[1729618613785,0.08463754,2620.1,2620.0,3.81671]
[1729618613979,7.21545744,2620.5,2620.0,3.81671]
[1729618613980,11.03164744,2620.5,2620.0,3.81671]
[1729618614226,0.08428282,2620.1,2619.9,3.81693]
[1729618614394,7.21539744,2620.5,2619.9,4.275683]
[1729618614600,3.81607,2620.5,2620.0,3.81678]
[1729618615119,7.21539744,2620.5,2620.0,3.81678]
[1729618615639,3.81587,2620.7,2620.3,4.61525]
[1729618615787,3.81587,2620.7,2620.3,0.7989]
[1729618616129,3.39932744,2620.9,2620.4,3.8162]
[1729618616130,11.03046744,2620.9,2620.4,3.8162]
[1729618616301,7.21489744,2620.9,2620.4,3.8162]
[1729618616888,7.21489744,2620.9,2620.4,7.63233]
[1729618617086,7.21489744,2620.9,2620.4,3.81613]
[1729618617433,0.5303,2621.0,2620.4,3.81613]
[1729618617586,7.21462744,2621.1,2620.6,3.81582]
[1729618617587,3.8153,2621.1,2620.6,3.81582]
[1729618617786,7.74463744,2621.3,2620.6,3.81582]
[1729618617787,4.34531,2621.3,2620.8,3.81561]
[1729618618017,3.81505,2621.2,2620.8,4.58961]
[1729618618407,7.74463744,2621.3,2620.8,4.58961]
[1729618618793,7.74463744,2621.3,2620.8,0.774]
[1729618619094,7.74463744,2621.3,2620.6,4.62472]
[1729618619293,7.74463744,2621.3,2620.7,3.81569]
[1729618619294,11.55964744,2621.3,2620.7,3.81569]
[1729618619630,3.81505,2621.2,2620.7,3.81569]
[1729618620336,0.07954299,2621.1,2620.6,0.8089]
[1729618620552,0.07954299,2621.1,2620.8,3.81554]
[1729618620710,7.74452744,2621.3,2620.8,7.63107]
[1729618621036,0.07960286,2621.2,2620.8,3.81553]
[1729618621542,0.07960286,2621.2,2620.6,4.6247]
[1729618621543,0.07943303,2621.1,2620.6,4.6247]
[1729618621711,3.47876047,2621.1,2620.6,4.6247]
[1729618621908,3.47876047,2621.1,2620.7,3.8157]
[1729618622130,3.47876047,2621.1,2620.6,4.6247]
[1729618622332,0.07943303,2621.1,2620.8,3.81562]
[1729618622500,0.07943303,2621.1,2620.7,3.81575]
[1729618622501,3.47876047,2621.1,2620.7,3.81575]
[1729618624012,3.47876047,2621.1,2620.8,3.81558]
[1729618624210,3.47876047,2621.1,2620.7,3.81575]
[1729618624410,7.29395047,2621.1,2620.7,3.81575]
[1729618624614,3.47876047,2621.1,2620.7,3.81575]
[1729618625053,3.47876047,2621.1,2620.7,7.63144]
[1729618625232,3.47876047,2621.1,2620.8,3.81562]
[1729618625558,0.07943303,2621.1,2620.8,3.81562]
[1729618626010,0.07943303,2621.1,2620.7,3.81575]
[1729618626414,0.07943303,2621.1,2620.5,3.81596]
[1729618626717,0.5303,2620.9,2620.4,4.62672]
[1729618626911,0.07884879,2620.8,2620.5,3.81606]
[1729618627143,0.07884879,2620.8,2620.6,3.81588]
[1729618627716,0.07884879,2620.8,2620.7,3.81577]
[1729618627916,3.81513,2621.2,2620.8,3.81558]
[1729618628116,0.07913828,2621.1,2620.6,0.844263]
[1729618628318,0.5303,2621.3,2620.9,3.81538]
[1729618628559,0.07916589,2621.2,2620.9,3.81538]
[1729618628770,0.07916589,2621.2,2621.1,3.81519]
[1729618628919,0.59722602,2621.9,2621.5,3.81455]
[1729618628920,0.5303,2621.9,2621.5,3.81455]
[1729618629121,3.81395,2622.0,2621.6,3.81445]
[1729618629433,3.81368,2622.2,2621.6,3.81445]
[1729618629434,0.07710841,2621.8,2621.7,3.81425]
[1729618629763,0.07733316,2621.8,2621.7,3.81425]
[1729618629915,4.34369,2622.4,2621.8,3.81406]
[1729618629916,8.1571,2622.4,2621.8,3.81406]
[1729618630116,0.07746902,2622.3,2621.9,3.81401]
[1729618630864,3.89093902,2622.3,2621.8,3.81416]
[1729618631016,3.81369,2622.2,2621.7,3.81425]
[1729618631422,0.07738078,2622.1,2621.7,3.81425]
[1729618631635,0.07738078,2622.1,2621.7,7.62848]
[1729618631821,0.07738078,2622.1,2621.6,4.57238]
[1729618632051,0.07738078,2622.1,2621.8,3.8141]
[1729618632357,3.81351,2622.3,2621.9,3.814]
[1729618632562,0.07719536,2622.0,2621.9,3.814]
[1729618632860,3.81351,2622.3,2621.9,3.814]
[1729618633063,3.81351,2622.3,2621.9,7.628]
[1729618633272,3.81351,2622.3,2621.9,3.814]
[1729618633273,0.07733071,2622.2,2621.9,3.814]
[1729618633625,3.81351,2622.3,2621.8,3.81415]
[1729618633858,0.07474946,2622.1,2621.8,3.81415]
[1729618634063,0.07480928,2622.2,2621.9,3.814]
[1729618634369,3.81345,2622.3,2621.9,3.814]
[1729618634554,0.07474946,2622.1,2621.9,3.814]
[1729618634868,3.81345,2622.3,2621.9,3.814]
[1729618635083,0.07468963,2622.0,2621.9,3.814]
[1729618635226,3.81345,2622.3,2621.9,3.814]
[1729618635426,0.07468963,2622.0,2621.9,3.814]
[1729618635667,3.81345,2622.3,2621.9,3.814]
[1729618635834,0.07480928,2622.2,2621.9,3.814]
[1729618636163,3.81345,2622.3,2621.9,3.814]
[1729618636373,0.07474946,2622.1,2621.9,3.814]
[1729618636677,3.39932744,2622.6,2621.9,3.814]
[1729618636678,4.34326,2622.7,2622.2,3.81357]
[1729618636883,3.81266,2622.9,2622.3,3.81336]
[1729618636884,4.34296,2622.9,2622.3,3.81336]
[1729618637031,3.81305,2622.6,2622.2,4.59988]
[1729618637364,3.81299,2622.7,2622.2,4.59978]
[1729618637575,3.81299,2622.7,2622.3,3.81343]
[1729618638525,0.5303,2622.9,2622.5,3.81315]
[1729618638759,0.5303,2622.9,2622.4,3.81321]
[1729618638943,3.8128,2622.8,2622.3,3.81343]
[1729618639159,3.8128,2622.8,2622.3,4.58343154]
[1729618639557,3.8128,2622.8,2622.4,3.81326]
[1729618640143,3.81279,2622.8,2622.3,0.77000154]
[1729618640353,3.81286,2622.7,2622.3,4.58343154]
[1729618640666,3.81273,2622.8,2622.4,3.81329]
[1729618642108,4.34289,2622.9,2622.4,3.81329]
[1729618642793,3.81273,2622.8,2622.4,3.81329]
[1729618644356,7.62553,2622.8,2622.4,3.81329]
[1729618644599,3.81273,2622.8,2622.4,3.81329]
[1729618644960,4.34287,2622.9,2622.4,3.81318]
[1729618645167,3.39932744,2623.2,2622.4,3.81318]
[1729618645168,4.3425,2623.2,2622.7,3.81278]
[1729618645385,3.812,2623.3,2622.8,3.81261]
[1729618645653,4.34204,2623.5,2623.0,3.81234]
[1729618645654,4.34206,2623.5,2623.0,3.81234]
[1729618645782,3.81176,2623.5,2623.1,4.60097]
[1729618645978,3.81155,2623.6,2623.1,4.60097]
[1729618646607,3.81155,2623.6,2623.2,3.81213]
[1729618646926,3.8117,2623.5,2623.1,0.7887]
[1729618648035,4.34173,2623.7,2623.2,3.8121]
[1729618648324,3.81133,2623.8,2623.3,3.81199]
[1729618648646,4.34139,2624.0,2623.5,3.81162]
[1729618648782,3.81107,2624.0,2623.6,0.7978]
[1729618649121,3.81107,2624.0,2623.4,3.81183]
[1729618649122,3.81123,2623.9,2623.4,3.81183]
[1729618649889,3.81123,2623.9,2623.4,7.6236]
[1729618650188,0.0671068,2623.8,2623.4,3.81177]
[1729618650383,3.8783668,2623.8,2623.3,7.60978]
[1729618650619,3.8783668,2623.8,2623.3,8.75196]
[1729618650826,0.0671068,2623.8,2623.4,3.81184]
[1729618651247,0.0671068,2623.8,2623.3,8.75195]
[1729618651602,3.8783768,2623.8,2623.3,8.75195]
[1729618652115,3.8783768,2623.8,2623.3,4.93998]
[1729618652299,7.6897568,2623.8,2623.3,4.93998]
[1729618652501,3.8783768,2623.8,2623.3,4.93998]
[1729618652704,3.8783768,2623.8,2623.3,8.75194]
[1729618652940,3.81159,2623.6,2623.3,0.7978]
[1729618653105,0.06707657,2623.5,2623.3,0.7978]
[1729618653644,0.0670168,2623.4,2623.3,0.7978]
[1729618653806,3.81142,2623.7,2623.3,0.7978]
[1729618654006,0.0670168,2623.4,2623.3,0.7978]
[1729618654242,3.81142,2623.7,2623.3,0.7978]
[1729618654553,0.0670168,2623.4,2623.3,5.52823663]
[1729618654753,3.8112,2623.9,2623.4,3.81176]
[1729618655342,3.81101,2624.0,2623.4,3.81176]
[1729618656348,3.81113,2623.9,2623.3,1.640012]
[1729618656504,3.81113,2623.9,2623.3,0.7978]
[1729618657504,7.21047744,2623.9,2623.3,0.7978]
[1729618657706,4.34124,2624.1,2623.3,0.7978]
[1729618658112,3.81107,2624.0,2623.3,0.7978]
[1729618658949,3.81118,2623.9,2623.3,0.7978]
[1729618659851,3.81107,2624.0,2623.4,3.81178]
[1729618660026,3.81107,2624.0,2623.4,8.084448]
[1729618660916,3.81107,2624.0,2623.5,3.8117]
[1729618662176,3.81107,2624.0,2623.4,4.272798]
[1729618662865,3.81107,2624.0,2623.4,0.460958]
[1729618663059,3.81105,2624.0,2623.5,3.81169]
[1729618663357,7.62211,2624.0,2623.5,3.81169]
[1729618663561,3.81105,2624.0,2623.5,3.81169]
[1729618663950,3.81105,2624.0,2623.5,3.88782537]
[1729618664150,3.81105,2624.0,2623.5,3.8116]
[1729618664667,3.81112,2623.9,2623.4,4.272778]
[1729618665394,0.0630573,2623.8,2623.4,4.272778]
[1729618665555,0.0630573,2623.8,2623.4,3.81182]
[1729618666266,0.0630573,2623.8,2623.4,3.81177]
[1729618668149,0.0630573,2623.8,2623.6,0.7927]
[1729618668331,0.0630573,2623.8,2623.7,0.07622543]
[1729618668524,3.81034,2624.5,2623.9,0.7927]
[1729618668525,0.5303,2624.5,2623.9,0.7927]
[1729618668843,3.81047,2624.4,2623.9,0.7927]
[1729618670465,3.81062,2624.3,2623.9,0.7927]
[1729618670677,3.81055,2624.3,2623.9,0.7927]
[1729618672188,3.81072,2624.2,2623.9,0.78375519]
[1729618672387,3.81061,2624.3,2623.8,0.78375519]
[1729618672599,3.81069,2624.2,2623.7,5.37238519]
[1729618672934,3.81069,2624.2,2623.8,0.85997233]
[1729618673270,3.8105,2624.4,2623.9,0.78375519]
[1729618673470,3.8105,2624.4,2624.0,0.8191]
[1729618673792,3.81055,2624.3,2624.0,0.8191]
[1729618674157,3.81055,2624.3,2624.0,1.60285519]
[1729618674564,3.81049,2624.4,2624.0,1.60285519]
[1729618674984,3.81054,2624.3,2624.0,1.60285519]
[1729618675400,3.81083,2624.1,2624.0,0.78375519]
[1729618675560,3.81083,2624.1,2623.9,0.78375519]
[1729618675906,3.8107,2624.2,2623.9,0.78375519]
[1729618676458,3.81055,2624.3,2623.9,0.78375519]
[1729618676893,0.5303,2624.6,2624.0,0.8052]
[1729618677131,7.62065,2624.5,2624.0,1.58895519]
[1729618677641,3.81046,2624.4,2624.0,1.58895519]
[1729618677848,3.81066,2624.3,2624.0,0.8052]
[1729618678137,3.81055,2624.3,2624.0,1.58895519]
[1729618678494,3.81055,2624.3,2624.0,0.8052]
[1729618678689,3.81055,2624.3,2624.0,1.58895519]
[1729618678924,3.81055,2624.3,2624.0,0.8052]
[1729618679123,3.81055,2624.3,2624.0,1.58895519]
[1729618680298,0.06131736,2624.2,2624.0,1.58895519]
[1729618680605,3.81055,2624.3,2624.0,1.58895519]
[1729618680807,3.81068,2624.2,2624.0,1.58895519]
[1729618681141,3.87199736,2624.2,2624.0,1.58895519]
[1729618682632,0.06131736,2624.2,2624.0,0.8052]
[1729618682846,0.06131736,2624.2,2624.0,1.58895519]
[1729618683047,3.81055,2624.3,2624.0,1.58895519]
[1729618683212,0.06131736,2624.2,2624.0,1.58895519]
[1729618683407,3.81055,2624.3,2624.0,1.58895519]
[1729618683752,3.81055,2624.3,2623.9,0.78375519]
[1729618683753,3.81097,2624.0,2623.9,0.78375519]
[1729618684054,3.87217595,2624.0,2623.8,1.57105519]
[1729618684210,3.87217595,2624.0,2623.7,1.17563278]
[1729618684211,3.87217595,2624.0,2623.7,0.78375519]
[1729618684553,3.87217595,2624.0,2623.8,0.78375519]
[1729618684554,0.06120595,2624.0,2623.8,0.78375519]
[1729618684910,7.621,2624.4,2624.0,0.7577]
[1729618685116,3.81048,2624.4,2624.0,0.7577]
[1729618685320,3.81061,2624.3,2624.0,1.54145519]
[1729618685626,3.81037,2624.5,2624.0,1.54145519]
[1729618685814,3.8106,2624.3,2624.0,0.7577]
[1729618686462,7.73959744,2624.7,2624.0,0.7577]
[1729618686463,3.39932744,2624.5,2624.0,0.7577]
[1729618686612,3.81112,2623.9,2623.8,0.78375519]
[1729618686816,3.81141,2623.7,2623.6,0.78375519]
[1729618687128,3.81155,2623.6,2623.3,1.61355519]
[1729618687911,3.81155,2623.6,2623.3,0.8298]
[1729618688147,3.8118,2623.5,2623.3,0.8298]
[1729618688343,3.81181,2623.5,2623.1,1.55775519]
[1729618688551,3.81188,2623.4,2623.1,1.55775519]
[1729618688713,3.81188,2623.4,2623.1,0.774]
[1729618689056,3.39932744,2623.5,2623.0,0.78375519]
[1729618689212,3.81184,2623.4,2623.0,0.78375519]
[1729618690059,3.81201,2623.3,2622.9,1.59945519]
[1729618690261,3.81173,2623.5,2622.9,1.59945519]
[1729618690262,3.81185,2623.4,2623.1,0.78375519]
[1729618690551,3.81185,2623.4,2623.0,0.78375519]
[1729618690752,3.81173,2623.5,2623.1,0.85999543]
[1729618690923,3.81173,2623.5,2623.0,4.59616519]
[1729618691127,3.81173,2623.5,2623.1,1.52405747]
[1729618691443,7.21082744,2623.7,2623.1,1.60029488]
[1729618691444,7.62304,2623.7,2623.1,1.60029488]
[1729618691641,3.81124,2623.9,2623.3,4.59565519]
[1729618691850,3.81129,2623.8,2623.4,0.8255]
[1729618692167,3.81147,2623.7,2623.5,0.54211552]
[1729618692341,3.81147,2623.7,2623.4,0.8255]
[1729618692735,3.81147,2623.7,2623.4,1.60925519]
[1729618692936,3.81147,2623.7,2623.4,0.8255]
[1729618693331,7.62245,2623.9,2623.4,1.60925519]
[1729618693526,3.81121,2623.9,2623.4,1.60925519]
[1729618693728,3.81121,2623.9,2623.4,2.80688003]
[1729618694166,3.81126,2623.8,2623.4,2.80688003]
[1729618694466,3.81126,2623.8,2623.4,6.61871003]
[1729618694672,3.81128,2623.8,2623.4,6.61871003]
[1729618694965,3.81121,2623.9,2623.4,6.61863003]
[1729618695168,7.62292,2623.7,2623.5,0.78375519]
[1729618695364,3.81143,2623.7,2623.4,2.80688003]
[1729618695667,0.06083086,2623.6,2623.4,2.80688003]
[1729618695869,0.06083086,2623.6,2623.5,0.39825128]
[1729618696167,3.81127,2623.8,2623.5,0.39825128]
[1729618696352,0.06080756,2623.6,2623.5,0.39825128]
[1729618696529,3.81144,2623.7,2623.5,0.39825128]
[1729618696732,0.06080756,2623.6,2623.5,0.39825128]
[1729618696965,0.06080756,2623.6,2623.4,0.78375519]
[1729618696966,3.8117,2623.5,2623.4,0.78375519]
[1729618697171,3.8117,2623.5,2623.2,0.78375519]
[1729618697359,3.81191,2623.4,2623.1,2.30265747]
[1729618697664,0.06087032,2623.3,2623.1,2.30265747]
[1729618698161,0.06087032,2623.3,2623.1,1.51890228]
[1729618698527,3.8117,2623.5,2623.1,2.30265747]
[1729618698740,0.06075799,2623.2,2623.1,2.30265747]
[1729618698954,3.8117,2623.5,2623.1,1.51890228]
[1729618699465,7.74114744,2623.7,2623.1,1.51890228]
[1729618699466,3.81156,2623.6,2623.1,6.11491747]
[1729618699629,0.06091398,2623.5,2623.1,9.92708747]
[1729618699829,0.06091398,2623.5,2623.1,6.11482747]
[1729618700374,0.06091398,2623.5,2623.2,0.78375519]
[1729618700586,3.80935,2625.2,2623.9,3.8111]
[1729618700587,3.81053,2624.4,2623.9,3.8111]
[1729618700738,4.34505,2624.9,2624.1,0.7891069]
[1729618701079,4.34505,2624.9,2624.5,3.81018]
[1729618701080,0.005,2624.9,2624.5,3.81018]
[1729618701230,0.005,2624.9,2624.5,0.78897364]
[1729618701431,0.005,2624.9,2624.7,3.80993]
[1729618701668,0.005,2624.9,2624.5,3.81012]
[1729618701669,0.005,2624.9,2624.6,3.8101]
[1729618701904,0.005,2624.9,2624.7,0.45990736]
[1729618702033,0.005,2624.9,2624.8,4.58351]
[1729618702234,0.005,2624.9,2624.8,1.56267364]
[1729618702433,0.005,2624.9,2624.8,4.58351]
[1729618702672,0.005,2624.9,2624.8,5.4486724]
[1729618702836,0.005,2624.9,2624.8,6.80259065]
[1729618703031,0.005,2624.9,2624.8,10.82810074]
[1729618703260,0.005,2624.9,2624.8,10.75191809]
[1729618703468,0.005,2624.9,2624.8,11.14622739]
[1729618703776,0.005,2624.9,2624.8,10.7498973]
[1729618704149,0.005,2624.9,2624.8,7.35056986]
[1729618704834,0.005,2624.9,2624.8,6.56361701]
[1729618706392,0.005,2624.9,2624.6,0.7552]
[1729618706538,0.005,2624.9,2624.4,3.07619983]
[1729618706877,0.04950923,2624.8,2624.4,3.07619983]
[1729618707090,0.04950923,2624.8,2624.4,6.47552727]
[1729618707267,0.04950923,2624.8,2624.3,4.56564]